[Event "MČR družstev mladších žáků 2024"]
[Site "Harrachov, Czech Republic"]
[Date "2024.06.15"]
[Round "4.3"]
[White "Bucek Vit"]
[Black "Kolar Edvard"]
[Result "0-1"]
[TimeControl "25+10"]
[WhiteFideId "23750812"]
[BlackFideId "23746238"]
[WhiteElo "1582"]
[BlackElo "1553"]

1. e4 {[%clk 00:25:19]} {[%emt 00:21:27]} c5 {[%clk 00:25:20]} 2. Nf3 {[%clk
00:25:28]} {[%emt 00:00:01]} Nc6 {[%clk 00:25:29]} 3. d4 {[%clk 00:25:37]} cxd4
{[%clk 00:25:38]} {[%emt 00:00:02]} 4. Nxd4 {[%clk 00:25:46]} g6 {[%clk
00:25:46]} {[%emt 00:00:01]} 5. Nc3 {[%clk 00:25:55]} Bg7 {[%clk 00:25:55]}
{[%emt 00:00:02]} 6. Be3 {[%clk 00:26:04]} Nf6 {[%clk 00:25:49]} {[%emt
00:00:16]} 7. Bc4 {[%clk 00:26:02]} {[%emt 00:00:11]} O-O {[%clk 00:25:37]}
{[%emt 00:00:22]} 8. Bb3 {[%clk 00:26:04]} {[%emt 00:00:09]} d6 {[%clk
00:25:42]} {[%emt 00:00:05]} 9. f3 {[%clk 00:26:12]} {[%emt 00:00:01]} Bd7
{[%clk 00:25:51]} {[%emt 00:00:01]} 10. Qd2 {[%clk 00:26:21]} {[%emt 00:00:01]}
Rc8 {[%clk 00:25:55]} {[%emt 00:00:06]} 11. O-O-O {[%clk 00:26:27]} {[%emt
00:00:03]} Na5 {[%clk 00:25:40]} {[%emt 00:00:25]} 12. h4 {[%clk 00:26:32]}
{[%emt 00:00:05]} Nxb3+ {[%clk 00:25:38]} {[%emt 00:00:13]} 13. cxb3 {[%clk
00:26:27]} {[%emt 00:00:15]} b5 {[%clk 00:25:14]} {[%emt 00:00:33]} 14. Kb1
{[%clk 00:26:33]} {[%emt 00:00:04]} b4 {[%clk 00:24:21]} {[%emt 00:01:04]} 15.
Nce2 {[%clk 00:26:16]} {[%emt 00:00:27]} a5 {[%clk 00:22:56]} {[%emt 00:01:35]}
16. h5 {[%clk 00:25:31]} {[%emt 00:00:54]} a4 {[%clk 00:22:42]} {[%emt
00:00:25]} 17. hxg6 {[%clk 00:24:55]} {[%emt 00:00:46]} fxg6 {[%clk 00:21:59]}
{[%emt 00:00:52]} 18. Bh6 {[%clk 00:24:23]} {[%emt 00:00:42]} axb3 {[%clk
00:21:30]} {[%emt 00:00:40]} 19. Nxb3 {[%clk 00:24:03]} {[%emt 00:00:30]} Qb6
{[%clk 00:19:11]} {[%emt 00:02:29]} 20. g4 {[%clk 00:23:39]} {[%emt 00:00:31]}
Ra8 {[%clk 00:17:19]} {[%emt 00:02:05]} 21. Bxg7 {[%clk 00:23:30]} {[%emt
00:00:20]} Kxg7 {[%clk 00:16:26]} {[%emt 00:01:02]} 22. Qh6+ {[%clk 00:23:37]}
{[%emt 00:00:02]} Kg8 {[%clk 00:15:29]} {[%emt 00:01:08]} 23. g5 {[%clk
00:23:34]} {[%emt 00:00:13]} Nh5 {[%clk 00:15:32]} {[%emt 00:00:07]} 24. Rxh5
{[%clk 00:21:08]} {[%emt 00:02:37]} Rf7 {[%clk 00:12:37]} {[%emt 00:03:04]} 25.
Rh2 {[%clk 00:20:53]} {[%emt 00:00:21]} Qa6 {[%clk 00:12:28]} {[%emt 00:00:23]}
26. Nec1 {[%clk 00:20:36]} {[%emt 00:00:27]} Ba4 {[%clk 00:11:54]} {[%emt
00:00:44]} 27. Rd3 {[%clk 00:18:46]} {[%emt 00:01:55]} Rc8 {[%clk 00:09:44]}
{[%emt 00:02:25]} 28. f4 {[%clk 00:15:50]} {[%emt 00:03:05]} Bxb3 {[%clk
00:09:46]} {[%emt 00:00:09]} 29. Rxb3 {[%clk 00:15:57]} {[%emt 00:00:03]} Qf1
{[%clk 00:07:30]} {[%emt 00:02:23]} 30. Rc2 {[%clk 00:15:10]} {[%emt 00:00:56]}
Rxc2 {[%clk 00:07:03]} {[%emt 00:00:40]} 31. Kxc2 {[%clk 00:15:18]} {[%emt
00:00:02]} e5 {[%clk 00:07:01]} {[%emt 00:00:13]} 32. Nd3 {[%clk 00:10:58]}
{[%emt 00:04:30]} Qe2+ {[%clk 00:06:52]} {[%emt 00:00:19]} 33. Kb1 {[%clk
00:09:09]} {[%emt 00:01:58]} Qd1+ {[%clk 00:06:52]} {[%emt 00:00:09]} 34. Nc1
{[%clk 00:09:03]} {[%emt 00:00:16]} Rc7 {[%clk 00:06:54]} {[%emt 00:00:08]} 35.
Rc3 {[%clk 00:07:41]} {[%emt 00:01:31]} bxc3 {[%clk 00:06:59]} {[%emt
00:00:05]} 36. Qh3 {[%clk 00:06:39]} {[%emt 00:01:12]} c2+ {[%clk 00:06:59]}
{[%emt 00:00:10]} 37. Ka1 {[%clk 00:06:47]} {[%emt 00:00:02]} Qxc1# {[%clk
00:07:05]} {[%emt 00:00:04]} 0-1



[ePGN "0.1;DGT LiveChess/2.2.6"]

[Event "MČR družstev mladších žáků 2024"]
[Site "Harrachov, Czech Republic"]
[Date "2024.06.15"]
[Round "4.4"]
[White "Gernert Tomas"]
[Black "Kozusnik Jan"]
[Result "1/2-1/2"]
[TimeControl "25+10"]
[WhiteFideId "23750219"]
[BlackFideId "23731796"]
[WhiteElo "1409"]
[BlackElo "1345"]

1. d4 {[%clk 00:25:19]} d5 {[%clk 00:25:18]} {[%emt 00:00:02]} 2. Nf3 {[%clk
00:25:28]} {[%emt 00:00:01]} Nf6 {[%clk 00:25:20]} {[%emt 00:00:08]} 3. Bf4
{[%clk 00:25:33]} {[%emt 00:00:04]} Nc6 {[%clk 00:23:37]} {[%emt 00:01:53]} 4.
e3 {[%clk 00:25:24]} {[%emt 00:00:20]} Bg4 {[%clk 00:23:42]} {[%emt 00:00:04]}
5. c3 {[%clk 00:24:21]} {[%emt 00:01:13]} e6 {[%clk 00:23:21]} {[%emt
00:00:31]} 6. Bd3 {[%clk 00:24:23]} {[%emt 00:00:08]} Bd6 {[%clk 00:23:21]}
{[%emt 00:00:10]} 7. Bg3 {[%clk 00:24:18]} {[%emt 00:00:15]} Bxg3 {[%clk
00:22:47]} {[%emt 00:00:43]} 8. hxg3 {[%clk 00:24:22]} {[%emt 00:00:07]} e5
{[%clk 00:22:15]} {[%emt 00:00:42]} 9. dxe5 {[%clk 00:23:20]} {[%emt 00:01:12]}
Nxe5 {[%clk 00:22:22]} {[%emt 00:00:02]} 10. Bc2 {[%clk 00:23:14]} {[%emt
00:00:17]} Qd6 {[%clk 00:21:16]} {[%emt 00:01:14]} 11. Nbd2 {[%clk 00:21:51]}
{[%emt 00:01:35]} O-O-O {[%clk 00:15:24]} {[%emt 00:06:02]} 12. Qb1 {[%clk
00:20:19]} {[%emt 00:01:41]} Rhe8 {[%clk 00:11:41]} {[%emt 00:03:53]} 13. Bf5+
{[%clk 00:18:01]} {[%emt 00:02:28]} Bxf5 {[%clk 00:11:41]} {[%emt 00:00:10]} 14.
Qxf5+ {[%clk 00:18:09]} {[%emt 00:00:03]} Qe6 {[%clk 00:11:39]} {[%emt
00:00:10]} 15. Qxe6+ {[%clk 00:17:19]} {[%emt 00:01:01]} Rxe6 {[%clk 00:11:43]}
{[%emt 00:00:06]} 16. Nxe5 {[%clk 00:16:43]} {[%emt 00:00:47]} Rxe5 {[%clk
00:11:46]} {[%emt 00:00:06]} 17. Nf3 {[%clk 00:16:43]} {[%emt 00:00:11]} Re7
{[%clk 00:11:24]} {[%emt 00:00:21]} 18. Rd1 {[%clk 00:15:35]} {[%emt 00:01:28]}
h6 {[%clk 00:10:55]} {[%emt 00:00:40]} 19. Nd4 {[%clk 00:15:07]} {[%emt
00:00:38]} c5 {[%clk 00:09:00]} {[%emt 00:02:06]} 20. Nf5 {[%clk 00:13:22]}
{[%emt 00:01:54]} Re5 {[%clk 00:09:06]} {[%emt 00:00:02]} 21. Nxg7 {[%clk
00:11:17]} {[%emt 00:02:17]} Rg5 {[%clk 00:08:31]} {[%emt 00:00:41]} 22. Rxh6
{[%clk 00:10:19]} {[%emt 00:01:12]} Ng4 {[%clk 00:08:38]} {[%emt 00:00:03]} 23.
Rh7 {[%clk 00:08:51]} {[%emt 00:01:39]} Nf6 {[%clk 00:08:40]} {[%emt 00:00:07]}
24. Rh6 {[%clk 00:08:59]} {[%emt 00:00:03]} Ng4 {[%clk 00:08:48]} {[%emt
00:00:02]} 25. Rh7 {[%clk 00:08:50]} {[%emt 00:00:19]} Nf6 {[%clk 00:08:57]}
{[%emt 00:00:01]} 26. Rh6 {[%clk 00:08:55]} {[%emt 00:00:05]} Ng4 {[%clk
00:09:05]} {[%emt 00:00:01]} 27. Rh7 {[%clk 00:09:01]} {[%emt 00:00:05]} Nf6
{[%clk 00:09:14]} 1/2-1/2



[ePGN "0.1;DGT LiveChess/2.2.6"]

[Event "MČR družstev mladších žáků 2024"]
[Site "Harrachov, Czech Republic"]
[Date "2024.06.15"]
[Round "4.5"]
[White "Lackova Lucie"]
[Black "Kusova Nikola"]
[Result "0-1"]
[TimeControl "25+10"]
[WhiteFideId "23731800"]
[BlackFideId "23733705"]
[WhiteElo "1601"]
[BlackElo "1353"]

1. e4 {[%clk 00:25:18]} {[%emt 00:00:02]} e5 {[%clk 00:25:18]} {[%emt
00:00:02]} 2. Nf3 {[%clk 00:25:26]} {[%emt 00:00:02]} Nf6 {[%clk 00:25:26]}
{[%emt 00:00:01]} 3. Nxe5 {[%clk 00:25:33]} {[%emt 00:00:04]} d6 {[%clk
00:25:35]} {[%emt 00:00:01]} 4. Nf3 {[%clk 00:25:41]} {[%emt 00:00:02]} Nxe4
{[%clk 00:25:43]} {[%emt 00:00:02]} 5. Nc3 {[%clk 00:25:48]} {[%emt 00:00:03]}
Nf6 {[%clk 00:25:50]} {[%emt 00:00:02]} 6. d4 {[%clk 00:25:43]} {[%emt
00:00:15]} d5 {[%clk 00:25:28]} {[%emt 00:00:32]} 7. Bg5 {[%clk 00:25:40]}
{[%emt 00:00:13]} Be7 {[%clk 00:25:33]} {[%emt 00:00:05]} 8. Be2 {[%clk
00:25:13]} {[%emt 00:00:37]} O-O {[%clk 00:25:13]} {[%emt 00:00:30]} 9. O-O
{[%clk 00:25:14]} {[%emt 00:00:10]} Nc6 {[%clk 00:24:55]} {[%emt 00:00:28]} 10.
Re1 {[%clk 00:23:38]} {[%emt 00:01:46]} Be6 {[%clk 00:23:36]} {[%emt 00:01:28]}
11. Bf4 {[%clk 00:22:40]} {[%emt 00:01:02]} Nh5 {[%clk 00:21:57]} {[%emt
00:01:54]} 12. Be3 {[%clk 00:22:11]} {[%emt 00:00:39]} a6 {[%clk 00:19:01]}
{[%emt 00:03:07]} 13. Qd2 {[%clk 00:17:29]} {[%emt 00:04:52]} Nf6 {[%clk
00:16:20]} {[%emt 00:02:50]} 14. a3 {[%clk 00:17:09]} {[%emt 00:00:30]} Qd7
{[%clk 00:15:08]} {[%emt 00:01:21]} 15. Rad1 {[%clk 00:13:47]} {[%emt
00:03:33]} Rad8 {[%clk 00:15:01]} {[%emt 00:00:17]} 16. Bf1 {[%clk 00:13:05]}
{[%emt 00:00:52]} h6 {[%clk 00:09:53]} {[%emt 00:05:18]} 17. Bd3 {[%clk
00:10:58]} {[%emt 00:02:16]} Bg4 {[%clk 00:08:38]} {[%emt 00:01:24]} 18. Be2
{[%clk 00:07:05]} {[%emt 00:04:05]} Ne4 {[%clk 00:07:36]} {[%emt 00:01:12]} 19.
Nxe4 {[%clk 00:04:45]} {[%emt 00:02:30]} dxe4 {[%clk 00:07:44]} {[%emt
00:00:02]} 20. Ne5 {[%clk 00:04:33]} {[%emt 00:00:22]} Nxe5 {[%clk 00:07:52]}
{[%emt 00:00:02]} 21. dxe5 {[%clk 00:04:42]} {[%emt 00:00:01]} Qxd2 {[%clk
00:07:55]} {[%emt 00:00:07]} 22. Rxd2 {[%clk 00:04:21]} {[%emt 00:00:31]} Rxd2
{[%clk 00:06:20]} {[%emt 00:01:45]} 23. Bxd2 {[%clk 00:04:21]} {[%emt
00:00:10]} Rd8 {[%clk 00:05:37]} {[%emt 00:00:53]} 24. Bxg4 {[%clk 00:04:01]}
{[%emt 00:00:30]} Rxd2 {[%clk 00:05:44]} {[%emt 00:00:03]} 25. Bc8 {[%clk
00:01:48]} {[%emt 00:02:23]} Bc5 {[%clk 00:04:24]} {[%emt 00:01:30]} 26. Rf1
{[%clk 00:01:40]} {[%emt 00:00:18]} b6 {[%clk 00:04:19]} {[%emt 00:00:16]} 27.
Bxa6 {[%clk 00:00:47]} {[%emt 00:01:03]} Rxc2 {[%clk 00:04:27]} {[%emt
00:00:02]} 28. b4 {[%clk 00:00:44]} {[%emt 00:00:13]} Bd4 {[%clk 00:04:33]}
{[%emt 00:00:03]} 29. Bb7 {[%clk 00:00:52]} {[%emt 00:00:03]} Re2 {[%clk
00:04:24]} {[%emt 00:00:19]} 30. g3 {[%clk 00:00:32]} {[%emt 00:00:30]} Bxe5
{[%clk 00:04:20]} {[%emt 00:00:14]} 31. Rd1 {[%clk 00:00:26]} {[%emt 00:00:15]}
Bd6 {[%clk 00:03:54]} {[%emt 00:00:37]} 32. Kf1 {[%clk 00:00:17]} {[%emt
00:00:19]} Ra2 {[%clk 00:03:52]} {[%emt 00:00:11]} 33. Bxe4 {[%clk 00:00:24]}
{[%emt 00:00:03]} Rxa3 {[%clk 00:04:00]} {[%emt 00:00:03]} 34. Kg2 {[%clk
00:00:28]} {[%emt 00:00:05]} Bxb4 {[%clk 00:04:02]} {[%emt 00:00:08]} 35. Rd7
{[%clk 00:00:25]} {[%emt 00:00:13]} Bd6 {[%clk 00:04:08]} {[%emt 00:00:03]} 36.
Bd5 {[%clk 00:00:30]} {[%emt 00:00:05]} Kh8 {[%clk 00:03:13]} {[%emt 00:01:05]}
37. Rxf7 {[%clk 00:00:36]} {[%emt 00:00:04]} Rd3 {[%clk 00:02:53]} {[%emt
00:00:30]} 38. Be4 {[%clk 00:00:35]} {[%emt 00:00:10]} Rd4 {[%clk 00:02:57]}
{[%emt 00:00:07]} 39. Bc6 {[%clk 00:00:34]} {[%emt 00:00:11]} Rb4 {[%clk
00:02:40]} {[%emt 00:00:28]} 40. Rf5 {[%clk 00:00:29]} {[%emt 00:00:11]} Bc5
{[%clk 00:02:42]} {[%emt 00:00:11]} 41. h4 {[%clk 00:00:27]} {[%emt 00:00:13]}
Rb2 {[%clk 00:01:53]} {[%emt 00:00:58]} 42. Kg1 {[%clk 00:00:15]} {[%emt
00:00:22]} Rb1+ {[%clk 00:02:00]} {[%emt 00:00:02]} 43. Kg2 {[%clk 00:00:24]}
{[%emt 00:00:02]} Rc1 {[%clk 00:02:06]} {[%emt 00:00:03]} 44. Be4 {[%clk
00:00:18]} {[%emt 00:00:17]} b5 {[%clk 00:02:03]} {[%emt 00:00:14]} 45. Rf7
{[%clk 00:00:16]} {[%emt 00:00:08]} Bd6 {[%clk 00:02:01]} {[%emt 00:00:16]} 46.
Rf5 {[%clk 00:00:20]} {[%emt 00:00:05]} b4 {[%clk 00:02:09]} {[%emt 00:00:03]}
47. Rb5 {[%clk 00:00:26]} {[%emt 00:00:03]} c5 {[%clk 00:01:27]} {[%emt
00:00:54]} 48. Rb6 {[%clk 00:00:28]} {[%emt 00:00:07]} Rd1 {[%clk 00:01:33]}
{[%emt 00:00:04]} 49. Rb5 {[%clk 00:00:32]} {[%emt 00:00:06]} c4 {[%clk
00:01:37]} {[%emt 00:00:06]} 50. Bc2 {[%clk 00:00:35]} {[%emt 00:00:07]} Rd2
{[%clk 00:01:43]} {[%emt 00:00:04]} 51. Be4 {[%clk 00:00:41]} {[%emt 00:00:04]}
c3 {[%clk 00:01:45]} {[%emt 00:00:09]} 52. Ra5 {[%clk 00:00:37]} {[%emt
00:00:14]} Bc7 {[%clk 00:01:24]} {[%emt 00:00:31]} 53. Rc5 {[%clk 00:00:32]}
{[%emt 00:00:15]} Rxf2+ {[%clk 00:01:27]} {[%emt 00:00:07]} 54. Kh3 {[%clk
00:00:19]} {[%emt 00:00:21]} Rf7 {[%clk 00:01:29]} {[%emt 00:00:09]} 55. Bd5
{[%clk 00:00:26]} {[%emt 00:00:03]} Re7 {[%clk 00:01:32]} {[%emt 00:00:06]} 56.
Rc4 {[%clk 00:00:31]} {[%emt 00:00:06]} Bd6 {[%clk 00:01:16]} {[%emt 00:00:26]}
57. Rc8+ {[%clk 00:00:30]} {[%emt 00:00:11]} Kh7 {[%clk 00:01:25]} {[%emt
00:00:02]} 58. Rc4 {[%clk 00:00:38]} {[%emt 00:00:02]} Rc7 {[%clk 00:01:06]}
{[%emt 00:00:29]} 59. Be4+ {[%clk 00:00:39]} {[%emt 00:00:09]} g6 {[%clk
00:00:59]} {[%emt 00:00:17]} 60. Rd4 {[%clk 00:00:45]} {[%emt 00:00:03]} Be5
{[%clk 00:00:58]} {[%emt 00:00:13]} 61. Rd5 {[%clk 00:00:41]} {[%emt 00:00:13]}
Bg7 {[%clk 00:01:03]} {[%emt 00:00:05]} 62. Bc2 {[%clk 00:00:46]} {[%emt
00:00:04]} Rb7 {[%clk 00:01:04]} {[%emt 00:00:09]} 63. Rd6 {[%clk 00:00:51]}
{[%emt 00:00:04]} b3 {[%clk 00:00:38]} {[%emt 00:00:39]} 64. Bxg6+ {[%clk
00:00:51]} {[%emt 00:00:10]} Kg8 {[%clk 00:00:46]} {[%emt 00:00:01]} 65. Bb1
{[%clk 00:00:53]} {[%emt 00:00:07]} c2 {[%clk 00:00:53]} {[%emt 00:00:04]} 66.
Bxc2 {[%clk 00:00:59]} {[%emt 00:00:05]} bxc2 {[%clk 00:01:02]} {[%emt
00:00:01]} 67. Rc6 {[%clk 00:01:07]} Rb2 {[%clk 00:01:06]} {[%emt 00:00:05]} 68.
Rc8+ {[%clk 00:01:13]} {[%emt 00:00:04]} Kh7 {[%clk 00:01:15]} {[%emt
00:00:02]} 69. Rc7 {[%clk 00:01:21]} {[%emt 00:00:02]} Kg8 {[%clk 00:01:05]}
{[%emt 00:00:20]} 70. Rc8+ {[%clk 00:01:29]} {[%emt 00:00:03]} Kf7 {[%clk
00:01:05]} {[%emt 00:00:10]} 71. Rc7+ {[%clk 00:01:33]} {[%emt 00:00:06]} Kf6
{[%clk 00:01:14]} {[%emt 00:00:01]} 72. Rc6+ {[%clk 00:01:40]} {[%emt
00:00:04]} Ke5 {[%clk 00:01:22]} {[%emt 00:00:01]} 73. Rc5+ {[%clk 00:01:43]}
{[%emt 00:00:07]} Kd4 {[%clk 00:01:31]} {[%emt 00:00:02]} 74. Rc8 {[%clk
00:01:48]} {[%emt 00:00:03]} Kd3 {[%clk 00:01:38]} {[%emt 00:00:04]} 75. Rd8+
{[%clk 00:01:54]} {[%emt 00:00:05]} Ke2 {[%clk 00:01:45]} {[%emt 00:00:01]} 76.
Re8+ {[%clk 00:02:00]} {[%emt 00:00:03]} Kd1 {[%clk 00:01:54]} {[%emt
00:00:02]} 77. Rd8+ {[%clk 00:02:08]} {[%emt 00:00:02]} Kc1 {[%clk 00:02:02]}
{[%emt 00:00:02]} 78. Rc8 {[%clk 00:02:16]} {[%emt 00:00:02]} Kb1 {[%clk
00:02:10]} {[%emt 00:00:02]} 79. Rc7 {[%clk 00:02:24]} {[%emt 00:00:02]} c1=Q
{[%clk 00:02:17]} {[%emt 00:00:03]} 80. Rxc1+ {[%clk 00:02:32]} {[%emt
00:00:02]} Kxc1 {[%clk 00:02:25]} {[%emt 00:00:02]} 81. Kg4 {[%clk 00:02:40]}
{[%emt 00:00:02]} Kd2 {[%clk 00:02:32]} {[%emt 00:00:03]} 82. Kh5 {[%clk
00:02:48]} {[%emt 00:00:02]} Ke3 {[%clk 00:02:39]} {[%emt 00:00:02]} 83. g4
{[%clk 00:02:56]} {[%emt 00:00:03]} Rb5+ {[%clk 00:02:44]} {[%emt 00:00:05]} 84.
g5 {[%clk 00:03:05]} hxg5 {[%clk 00:02:52]} {[%emt 00:00:02]} 85. hxg5 {[%clk
00:03:13]} {[%emt 00:00:02]} Bf6 {[%clk 00:03:01]} {[%emt 00:00:01]} 86. Kg6
{[%clk 00:03:21]} {[%emt 00:00:02]} Bxg5 {[%clk 00:03:08]} {[%emt 00:00:03]} 87.
Kf7 {[%clk 00:03:30]} {[%emt 00:00:01]} Kf4 {[%clk 00:03:17]} {[%emt 00:00:01]}
88. Ke8 {[%clk 00:03:37]} {[%emt 00:00:03]} Ke5 {[%clk 00:03:24]} {[%emt
00:00:02]} 89. Kf8 {[%clk 00:03:46]} {[%emt 00:00:03]} Ke6 {[%clk 00:03:31]}
{[%emt 00:00:03]} 90. Kg8 {[%clk 00:03:54]} {[%emt 00:00:01]} Rb7 {[%clk
00:03:36]} {[%emt 00:00:04]} 91. Kf8 {[%clk 00:04:02]} {[%emt 00:00:03]} Bh6+
{[%clk 00:03:43]} {[%emt 00:00:03]} 92. Ke8 {[%clk 00:04:11]} {[%emt 00:00:01]}
Rb8# {[%clk 00:03:52]} 0-1



[ePGN "0.1;DGT LiveChess/2.2.6"]